[Event "Early-Titled-Tuesday-Blitz-January-23-2024"]
[Site "Chess.com"]
[Date "2024.01.23"]
[Round "3"]
[White "GulenayAydin"]
[Black "ferdipy"]
[Result "1-0"]
[WhiteElo "2558"]
[BlackElo "2301"]
[TimeControl "180+1"]
[EndTime "8:27:48 PST"]
[Termination "GulenayAydin won by checkmate"]

1. e4 {[%clk 0:03:00.9]} 1... c5 {[%clk 0:02:49.1]} 2. Nf3 {[%clk 0:02:55.8]}
2... d6 {[%clk 0:02:43.6]} 3. d4 {[%clk 0:02:55.4]} 3... cxd4 {[%clk 0:02:44.5]}
4. Nxd4 {[%clk 0:02:55.9]} 4... Nf6 {[%clk 0:02:43.8]} 5. Nc3 {[%clk 0:02:56.1]}
5... a6 {[%clk 0:02:44.7]} 6. a3 {[%clk 0:02:52.5]} 6... e5 {[%clk 0:02:42.8]}
7. Nf5 {[%clk 0:02:52.7]} 7... Bxf5 {[%clk 0:02:42.2]} 8. exf5 {[%clk
0:02:52.9]} 8... d5 {[%clk 0:02:37.6]} 9. Bg5 {[%clk 0:02:50.1]} 9... d4 {[%clk
0:02:38.2]} 10. Bxf6 {[%clk 0:02:36.3]} 10... Qxf6 {[%clk 0:02:39.1]} 11. Nd5
{[%clk 0:02:36.3]} 11... Qd8 {[%clk 0:02:24.1]} 12. Bc4 {[%clk 0:02:23.6]} 12...
Nc6 {[%clk 0:02:12]} 13. O-O {[%clk 0:02:22.5]} 13... Be7 {[%clk 0:02:02.4]} 14.
Re1 {[%clk 0:02:09.5]} 14... O-O {[%clk 0:02:02.1]} 15. Qf3 {[%clk 0:01:58.4]}
15... Rc8 {[%clk 0:01:47.7]} 16. Bd3 {[%clk 0:01:55.7]} 16... f6 {[%clk
0:01:23]} 17. Bc4 {[%clk 0:01:45.9]} 17... Kh8 {[%clk 0:01:23.2]} 18. Ba2 {[%clk
0:01:37.1]} 18... Na5 {[%clk 0:01:15.8]} 19. Re4 {[%clk 0:01:32.5]} 19... Nc4
{[%clk 0:01:07.7]} 20. Rh4 {[%clk 0:01:30.2]} 20... Rc5 {[%clk 0:00:50.6]} 21.
b4 {[%clk 0:01:07.5]} 21... Rc8 {[%clk 0:00:13.1]} 22. Rd1 {[%clk 0:00:47.7]}
22... h6 {[%clk 0:00:11.2]} 23. Bb3 {[%clk 0:00:46.2]} 23... b5 {[%clk
0:00:10.3]} 24. Rd3 {[%clk 0:00:29.1]} 24... Qe8 {[%clk 0:00:09.7]} 25. Qh3
{[%clk 0:00:23.2]} 25... Qf7 {[%clk 0:00:07.4]} 26. Rg3 {[%clk 0:00:22]} 26...
Rg8 {[%clk 0:00:02.9]} 27. Nxe7 {[%clk 0:00:21.4]} 27... Qxe7 {[%clk 0:00:02.4]}
28. Rxh6+ {[%clk 0:00:19.6]} 28... gxh6 {[%clk 0:00:03.3]} 29. Qxh6+ {[%clk
0:00:20.5]} 29... Qh7 {[%clk 0:00:02.8]} 30. Qxf6+ {[%clk 0:00:21.2]} 30... Rg7
{[%clk 0:00:03.7]} 31. Kf1 {[%clk 0:00:05.7]} 31... Rg8 {[%clk 0:00:03.6]} 32.
Rh3 {[%clk 0:00:06.1]} 32... Qxh3 {[%clk 0:00:02]} 33. gxh3 {[%clk 0:00:07]}
33... Kh7 {[%clk 0:00:01.9]} 34. Qh4# {[%clk 0:00:07.1]} 1-0

[Event "Early-Titled-Tuesday-Blitz-January-23-2024"]
[Site "Chess.com"]
[Date "2024.01.23"]
[Round "3"]
[White "vedantgoswami"]
[Black "ChessSwole"]
[Result "0-1"]
[WhiteElo "2301"]
[BlackElo "2636"]
[TimeControl "180+1"]
[EndTime "8:27:48 PST"]
[Termination "ChessSwole won by checkmate"]

1. d4 {[%clk 0:03:00.9]} 1... d5 {[%clk 0:02:58.2]} 2. Bf4 {[%clk 0:02:59.3]}
2... c5 {[%clk 0:02:57.3]} 3. c3 {[%clk 0:02:57]} 3... Nc6 {[%clk 0:02:56.9]} 4.
e3 {[%clk 0:02:55.8]} 4... Nf6 {[%clk 0:02:56.7]} 5. Nd2 {[%clk 0:02:54]} 5...
Bf5 {[%clk 0:02:54.7]} 6. Ngf3 {[%clk 0:02:51.8]} 6... e6 {[%clk 0:02:54.4]} 7.
Bb5 {[%clk 0:02:49.4]} 7... Bd6 {[%clk 0:02:48.8]} 8. dxc5 {[%clk 0:02:44.7]}
8... Bxc5 {[%clk 0:02:48.5]} 9. Nd4 {[%clk 0:02:43]} 9... Bxd4 {[%clk 0:02:34]}
10. exd4 {[%clk 0:02:40.4]} 10... O-O {[%clk 0:02:34.2]} 11. O-O {[%clk
0:02:39.3]} 11... Ne7 {[%clk 0:02:24.6]} 12. Bg5 {[%clk 0:02:32]} 12... Nc8
{[%clk 0:01:59.3]} 13. Re1 {[%clk 0:02:22.8]} 13... Nd6 {[%clk 0:01:59]} 14. Bf1
{[%clk 0:02:23]} 14... h6 {[%clk 0:01:56.8]} 15. Bh4 {[%clk 0:02:21.4]} 15...
Bg6 {[%clk 0:01:56.1]} 16. Nf3 {[%clk 0:02:19]} 16... Bh5 {[%clk 0:01:52.7]} 17.
Be2 {[%clk 0:02:11.3]} 17... Nf5 {[%clk 0:01:51.7]} 18. Bg3 {[%clk 0:02:05]}
18... Ne4 {[%clk 0:01:46.9]} 19. Qb3 {[%clk 0:02:00.3]} 19... Qe7 {[%clk
0:01:35.2]} 20. Ne5 {[%clk 0:01:56.7]} 20... Bxe2 {[%clk 0:01:32.3]} 21. Rxe2
{[%clk 0:01:56.5]} 21... Rfc8 {[%clk 0:01:24.9]} 22. Rae1 {[%clk 0:01:53.9]}
22... h5 {[%clk 0:01:08]} 23. Bf4 {[%clk 0:01:51.7]} 23... a5 {[%clk 0:00:51.1]}
24. a4 {[%clk 0:01:46.8]} 24... Qh4 {[%clk 0:00:46.6]} 25. Bc1 {[%clk
0:01:37.6]} 25... Qe7 {[%clk 0:00:41.7]} 26. f3 {[%clk 0:01:35.3]} 26... Ned6
{[%clk 0:00:38.5]} 27. Nd3 {[%clk 0:01:26]} 27... Nc4 {[%clk 0:00:34.7]} 28. Bf4
{[%clk 0:01:15.5]} 28... Ra6 {[%clk 0:00:32.2]} 29. Ne5 {[%clk 0:01:11.8]} 29...
Rb6 {[%clk 0:00:31.4]} 30. Qa2 {[%clk 0:01:09]} 30... Qe8 {[%clk 0:00:27.8]} 31.
Bc1 {[%clk 0:01:00.9]} 31... Nfd6 {[%clk 0:00:24.7]} 32. Nd3 {[%clk 0:00:58.6]}
32... Rbc6 {[%clk 0:00:21]} 33. b3 {[%clk 0:00:52.6]} 33... Nb6 {[%clk
0:00:20.7]} 34. Bd2 {[%clk 0:00:52.4]} 34... Nd7 {[%clk 0:00:18.3]} 35. Qa3
{[%clk 0:00:44.2]} 35... Qd8 {[%clk 0:00:17.4]} 36. Ne5 {[%clk 0:00:36.7]} 36...
Nxe5 {[%clk 0:00:16.7]} 37. Rxe5 {[%clk 0:00:36]} 37... g6 {[%clk 0:00:15.7]}
38. Qb2 {[%clk 0:00:33.8]} 38... Qb6 {[%clk 0:00:14.7]} 39. h4 {[%clk
0:00:31.9]} 39... Nc4 {[%clk 0:00:14.2]} 40. Qc1 {[%clk 0:00:29.1]} 40... Nxd2
{[%clk 0:00:13.9]} 41. Qxd2 {[%clk 0:00:29.7]} 41... Rxc3 {[%clk 0:00:14]} 42.
Qh6 {[%clk 0:00:25.3]} 42... Qxd4+ {[%clk 0:00:13.7]} 43. Kh2 {[%clk 0:00:22.2]}
43... Qxh4+ {[%clk 0:00:13.9]} 44. Kg1 {[%clk 0:00:22.4]} 44... Rc2 {[%clk
0:00:13.3]} 45. Rxe6 {[%clk 0:00:19.7]} 45... Qf2+ {[%clk 0:00:12.8]} 46. Kh1
{[%clk 0:00:18.8]} 46... Qxg2# {[%clk 0:00:13.7]} 0-1

[Event "Early-Titled-Tuesday-Blitz-January-23-2024"]
[Site "Chess.com"]
[Date "2024.01.23"]
[Round "3"]
[White "CSB7"]
[Black "amintabatabaei"]
[Result "0-1"]
[WhiteElo "2744"]
[BlackElo "3030"]
[TimeControl "180+1"]
[EndTime "8:27:49 PST"]
[Termination "amintabatabaei won on time"]

1. d4 {[%clk 0:03:00.9]} 1... Nf6 {[%clk 0:02:58.4]} 2. Nf3 {[%clk 0:03:01.5]}
2... g6 {[%clk 0:02:58.9]} 3. c4 {[%clk 0:02:57.3]} 3... Bg7 {[%clk 0:02:59.4]}
4. Nc3 {[%clk 0:02:57.2]} 4... d6 {[%clk 0:02:58.8]} 5. e4 {[%clk 0:02:52.6]}
5... O-O {[%clk 0:02:59]} 6. Be2 {[%clk 0:02:53.3]} 6... e5 {[%clk 0:02:58]} 7.
dxe5 {[%clk 0:02:54.2]} 7... dxe5 {[%clk 0:02:58.1]} 8. Qxd8 {[%clk 0:02:54.8]}
8... Rxd8 {[%clk 0:02:58.8]} 9. Bg5 {[%clk 0:02:55]} 9... Re8 {[%clk 0:02:58.1]}
10. Nd5 {[%clk 0:02:54.1]} 10... Nxd5 {[%clk 0:02:58.7]} 11. cxd5 {[%clk
0:02:54.5]} 11... c6 {[%clk 0:02:59.6]} 12. Bc4 {[%clk 0:02:54]} 12... b5 {[%clk
0:03:00]} 13. Bb3 {[%clk 0:02:52.6]} 13... Bb7 {[%clk 0:03:00.1]} 14. Rd1 {[%clk
0:02:40.4]} 14... a5 {[%clk 0:02:57.5]} 15. a3 {[%clk 0:02:20.2]} 15... Nd7
{[%clk 0:02:55.4]} 16. O-O {[%clk 0:01:40.4]} 16... Nc5 {[%clk 0:02:52.7]} 17.
dxc6 {[%clk 0:01:40.5]} 17... Bxc6 {[%clk 0:02:53.6]} 18. Bd5 {[%clk 0:01:40.7]}
18... Bxd5 {[%clk 0:02:46.2]} 19. exd5 {[%clk 0:01:41.6]} 19... e4 {[%clk
0:02:46.3]} 20. Nd4 {[%clk 0:01:41.2]} 20... Re5 {[%clk 0:02:41.9]} 21. Be3
{[%clk 0:01:27.7]} 21... Rxd5 {[%clk 0:02:42.1]} 22. Nxb5 {[%clk 0:01:27.4]}
22... Rxd1 {[%clk 0:02:42]} 23. Rxd1 {[%clk 0:01:28.3]} 23... Nd3 {[%clk
0:02:40.1]} 24. b3 {[%clk 0:01:20.2]} 24... f5 {[%clk 0:02:40.3]} 25. g3 {[%clk
0:01:16.1]} 25... Rc8 {[%clk 0:02:29.5]} 26. a4 {[%clk 0:01:02.3]} 26... Rc2
{[%clk 0:02:29.7]} 27. h4 {[%clk 0:00:31.8]} 27... Rb2 {[%clk 0:02:24.4]} 28.
Bb6 {[%clk 0:00:27.6]} 28... Bf8 {[%clk 0:02:18.6]} 29. Nd4 {[%clk 0:00:21.5]}
29... Nxf2 {[%clk 0:01:37.4]} 30. Rc1 {[%clk 0:00:14.7]} 30... Bd6 {[%clk
0:00:48.6]} 31. Ne6 {[%clk 0:00:03.9]} 31... Bxg3 {[%clk 0:00:41.9]} 32. Rc8+
{[%clk 0:00:03.7]} 32... Kf7 {[%clk 0:00:42]} 33. Ng5+ {[%clk 0:00:04.4]} 33...
Ke7 {[%clk 0:00:42.3]} 34. Nxh7 {[%clk 0:00:03.5]} 34... Bxh4 {[%clk 0:00:27.8]}
35. Rc7+ {[%clk 0:00:04]} 35... Kd6 {[%clk 0:00:26.6]} 36. Nf8 {[%clk
0:00:04.7]} 36... Nh3+ {[%clk 0:00:21]} 37. Kf1 {[%clk 0:00:04.2]} 37... Bf2
{[%clk 0:00:21.8]} 38. Rd7+ {[%clk 0:00:01.8]} 38... Kc6 {[%clk 0:00:22.3]} 39.
Bxa5 {[%clk 0:00:01.5]} 39... e3 {[%clk 0:00:19.7]} 40. Re7 {[%clk 0:00:02]}
40... Nf4 {[%clk 0:00:17.8]} 0-1

[Event "Early-Titled-Tuesday-Blitz-January-23-2024"]
[Site "Chess.com"]
[Date "2024.01.23"]
[Round "3"]
[White "Rurep26"]
[Black "Natalya_Buksa"]
[Result "0-1"]
[WhiteElo "2769"]
[BlackElo "2571"]
[TimeControl "180+1"]
[EndTime "8:27:49 PST"]
[Termination "Natalya_Buksa won by resignation"]

1. d4 {[%clk 0:03:00.9]} 1... d5 {[%clk 0:02:59.3]} 2. Bf4 {[%clk 0:03:00]} 2...
Nf6 {[%clk 0:02:58.9]} 3. e3 {[%clk 0:03:00]} 3... g6 {[%clk 0:02:57.4]} 4. Nd2
{[%clk 0:02:55.2]} 4... Bg7 {[%clk 0:02:57.5]} 5. h4 {[%clk 0:02:55.4]} 5... c5
{[%clk 0:02:56.8]} 6. c3 {[%clk 0:02:54.4]} 6... Nc6 {[%clk 0:02:57.2]} 7. Ngf3
{[%clk 0:02:54]} 7... h6 {[%clk 0:02:53.7]} 8. Ne5 {[%clk 0:02:50.8]} 8... Qb6
{[%clk 0:02:52.3]} 9. Qb3 {[%clk 0:02:46.7]} 9... c4 {[%clk 0:02:51.6]} 10. Qc2
{[%clk 0:02:47.2]} 10... Bf5 {[%clk 0:02:51.1]} 11. Qc1 {[%clk 0:02:47.7]} 11...
Ne4 {[%clk 0:02:49.5]} 12. Nxe4 {[%clk 0:02:45.8]} 12... Bxe4 {[%clk 0:02:50.4]}
13. f3 {[%clk 0:02:41.7]} 13... Bf5 {[%clk 0:02:49.3]} 14. g4 {[%clk 0:02:36.1]}
14... Be6 {[%clk 0:02:38.8]} 15. Be2 {[%clk 0:02:20.8]} 15... O-O-O {[%clk
0:02:31.2]} 16. Nxc6 {[%clk 0:02:11.1]} 16... Qxc6 {[%clk 0:02:30.1]} 17. b3
{[%clk 0:02:06.7]} 17... g5 {[%clk 0:02:28.4]} 18. Bg3 {[%clk 0:02:03.7]} 18...
h5 {[%clk 0:02:18.1]} 19. gxh5 {[%clk 0:02:01.7]} 19... Rxh5 {[%clk 0:02:14.4]}
20. f4 {[%clk 0:02:00.6]} 20... g4 {[%clk 0:02:11.7]} 21. Kf2 {[%clk 0:01:57.6]}
21... f5 {[%clk 0:02:09]} 22. Qa3 {[%clk 0:01:53.7]} 22... Bf6 {[%clk
0:02:02.8]} 23. Qxa7 {[%clk 0:01:46.6]} 23... Rdh8 {[%clk 0:02:02.7]} 24. b4
{[%clk 0:01:20.7]} 24... Bd7 {[%clk 0:01:52.1]} 25. a4 {[%clk 0:01:12.2]} 25...
Kc7 {[%clk 0:01:43.1]} 26. b5 {[%clk 0:01:07.9]} 26... Qb6 {[%clk 0:01:42.7]}
27. Qxb6+ {[%clk 0:01:06.8]} 27... Kxb6 {[%clk 0:01:43.6]} 28. Rh2 {[%clk
0:00:52.2]} 28... Bxh4 {[%clk 0:01:41.9]} 29. Rah1 {[%clk 0:00:52.3]} 29...
Bxg3+ {[%clk 0:01:41.4]} 30. Kxg3 {[%clk 0:00:53.2]} 30... Rxh2 {[%clk
0:01:04.4]} 31. Rxh2 {[%clk 0:00:54.1]} 31... Rxh2 {[%clk 0:01:03.6]} 32. Kxh2
{[%clk 0:00:49.4]} 32... Bxb5 {[%clk 0:01:03.7]} 33. axb5 {[%clk 0:00:48.1]}
33... Kxb5 {[%clk 0:01:04.6]} 34. Bd1 {[%clk 0:00:43.8]} 34... Ka5 {[%clk
0:01:04.3]} 35. Bc2 {[%clk 0:00:40]} 35... e6 {[%clk 0:01:04.3]} 36. e4 {[%clk
0:00:26.8]} 36... dxe4 {[%clk 0:01:03.6]} 37. Bxe4 {[%clk 0:00:24]} 37... fxe4
{[%clk 0:01:02.2]} 38. d5 {[%clk 0:00:23.9]} 38... Kb6 {[%clk 0:00:44.1]} 39.
dxe6 {[%clk 0:00:21.1]} 39... Kc7 {[%clk 0:00:42.7]} 40. f5 {[%clk 0:00:19.2]}
40... Kd6 {[%clk 0:00:42.9]} 41. Kg3 {[%clk 0:00:19.9]} 41... e3 {[%clk
0:00:42.9]} 42. Kg2 {[%clk 0:00:15.9]} 42... b5 {[%clk 0:00:41.2]} 43. Kg3
{[%clk 0:00:15.5]} 43... Ke7 {[%clk 0:00:39.7]} 44. Kg2 {[%clk 0:00:14.7]} 44...
b4 {[%clk 0:00:32.2]} 45. cxb4 {[%clk 0:00:14.3]} 45... c3 {[%clk 0:00:32.5]}
0-1

[Event "Early-Titled-Tuesday-Blitz-January-23-2024"]
[Site "Chess.com"]
[Date "2024.01.23"]
[Round "3"]
[White "Jumbo"]
[Black "Egor_Koshulyan"]
[Result "1-0"]
[WhiteElo "2974"]
[BlackElo "2692"]
[TimeControl "180+1"]
[EndTime "8:27:50 PST"]
[Termination "Jumbo won by resignation"]

1. d4 {[%clk 0:03:00.9]} 1... d5 {[%clk 0:02:45.7]} 2. Nf3 {[%clk 0:03:01.3]}
2... Nf6 {[%clk 0:02:45.4]} 3. Bf4 {[%clk 0:03:00.8]} 3... c5 {[%clk 0:02:44.9]}
4. e3 {[%clk 0:03:01.3]} 4... Nc6 {[%clk 0:02:44.6]} 5. Nbd2 {[%clk 0:03:01.6]}
5... Qb6 {[%clk 0:02:44.3]} 6. dxc5 {[%clk 0:02:32.4]} 6... Qxb2 {[%clk
0:02:43.3]} 7. Rb1 {[%clk 0:02:29.6]} 7... Qc3 {[%clk 0:02:43.4]} 8. Bb5 {[%clk
0:02:29]} 8... g6 {[%clk 0:02:39.5]} 9. O-O {[%clk 0:01:47.8]} 9... Bg7 {[%clk
0:02:38]} 10. Ne5 {[%clk 0:01:36.5]} 10... Bd7 {[%clk 0:02:21.2]} 11. Nxd7
{[%clk 0:01:15]} 11... Nxd7 {[%clk 0:02:22.1]} 12. Nb3 {[%clk 0:01:14.2]} 12...
O-O {[%clk 0:02:13.6]} 13. Qxd5 {[%clk 0:01:13.2]} 13... Rfd8 {[%clk 0:02:02.2]}
14. Qd3 {[%clk 0:00:46.6]} 14... Qf6 {[%clk 0:01:56.2]} 15. Qe4 {[%clk
0:00:43.6]} 15... Rac8 {[%clk 0:01:54]} 16. Rfd1 {[%clk 0:00:43]} 16... e5
{[%clk 0:01:08.8]} 17. Bg3 {[%clk 0:00:42.4]} 17... Qe7 {[%clk 0:01:09.4]} 18.
Bh4 {[%clk 0:00:34.3]} 18... g5 {[%clk 0:00:55.3]} 19. Bg3 {[%clk 0:00:31]}
19... Nxc5 {[%clk 0:00:55.9]} 20. Nxc5 {[%clk 0:00:30.6]} 20... Qxc5 {[%clk
0:00:56.8]} 21. Bd3 {[%clk 0:00:31]} 21... Rxd3 {[%clk 0:00:17.3]} 22. cxd3
{[%clk 0:00:29.8]} 22... Qe7 {[%clk 0:00:16.4]} 23. h4 {[%clk 0:00:27.8]} 23...
gxh4 {[%clk 0:00:16.2]} 24. Bxh4 {[%clk 0:00:27.7]} 24... Qe6 {[%clk 0:00:16.9]}
25. Rxb7 {[%clk 0:00:25.9]} 25... Qxa2 {[%clk 0:00:17.1]} 26. Rc1 {[%clk
0:00:20.5]} 26... Qa6 {[%clk 0:00:15.6]} 27. Rd7 {[%clk 0:00:17.9]} 27... Qb6
{[%clk 0:00:03.2]} 28. Rxc6 {[%clk 0:00:15.6]} 28... Rxc6 {[%clk 0:00:02.3]} 29.
Rd8+ {[%clk 0:00:15.5]} 29... Bf8 {[%clk 0:00:03.1]} 30. g4 {[%clk 0:00:04.8]}
30... Rg6 {[%clk 0:00:01.8]} 31. Be7 {[%clk 0:00:04.2]} 31... Qb1+ {[%clk
0:00:02]} 32. Kg2 {[%clk 0:00:04.8]} 32... f5 {[%clk 0:00:01.8]} 33. Qxf5 {[%clk
0:00:04.5]} 33... Rxg4+ {[%clk 0:00:01.3]} 34. Qxg4+ {[%clk 0:00:04.5]} 34...
Kf7 {[%clk 0:00:02.2]} 35. Rxf8+ {[%clk 0:00:04.7]} 1-0

[Event "Early-Titled-Tuesday-Blitz-January-23-2024"]
[Site "Chess.com"]
[Date "2024.01.23"]
[Round "3"]
[White "eljanov"]
[Black "Artyom_ChessMate"]
[Result "1-0"]
[WhiteElo "2854"]
[BlackElo "2527"]
[TimeControl "180+1"]
[EndTime "8:27:50 PST"]
[Termination "eljanov won on time"]

1. e4 {[%clk 0:03:00.9]} 1... c5 {[%clk 0:02:58.2]} 2. Nf3 {[%clk 0:03:01.2]}
2... d6 {[%clk 0:02:58.6]} 3. d4 {[%clk 0:03:01.8]} 3... cxd4 {[%clk 0:02:59.5]}
4. Nxd4 {[%clk 0:03:02.5]} 4... Nf6 {[%clk 0:03:00.1]} 5. Nc3 {[%clk 0:03:03.1]}
5... g6 {[%clk 0:03:00.7]} 6. g3 {[%clk 0:02:59.9]} 6... Bg7 {[%clk 0:03:00.8]}
7. Bg2 {[%clk 0:03:00.4]} 7... O-O {[%clk 0:03:01.5]} 8. O-O {[%clk 0:03:00.7]}
8... Nc6 {[%clk 0:03:02.2]} 9. Nde2 {[%clk 0:02:57.6]} 9... Rb8 {[%clk
0:03:02.3]} 10. a4 {[%clk 0:02:56]} 10... b6 {[%clk 0:03:02.4]} 11. h3 {[%clk
0:02:54.8]} 11... Bb7 {[%clk 0:03:02.5]} 12. Nd5 {[%clk 0:02:49.9]} 12... e6
{[%clk 0:02:38]} 13. Nxf6+ {[%clk 0:02:46.9]} 13... Bxf6 {[%clk 0:02:38.7]} 14.
c3 {[%clk 0:02:44.8]} 14... Qe7 {[%clk 0:02:34.4]} 15. Bh6 {[%clk 0:02:44.4]}
15... Rfd8 {[%clk 0:02:34.1]} 16. f4 {[%clk 0:02:21.3]} 16... Rbc8 {[%clk
0:02:32]} 17. g4 {[%clk 0:02:11.1]} 17... Na5 {[%clk 0:02:30.3]} 18. Ng3 {[%clk
0:01:52.9]} 18... Nc4 {[%clk 0:02:26.6]} 19. Qe2 {[%clk 0:01:51.7]} 19... Qc7
{[%clk 0:02:03.6]} 20. g5 {[%clk 0:01:44.9]} 20... Bh8 {[%clk 0:02:00.2]} 21.
Kh2 {[%clk 0:01:43.1]} 21... Qc5 {[%clk 0:01:34.6]} 22. Rae1 {[%clk 0:01:39.7]}
22... b5 {[%clk 0:01:02.7]} 23. b3 {[%clk 0:01:05]} 23... Nb6 {[%clk 0:00:52.8]}
24. axb5 {[%clk 0:01:02.4]} 24... Qxc3 {[%clk 0:00:46.6]} 25. Rf3 {[%clk
0:00:59.8]} 25... Qc2 {[%clk 0:00:45]} 26. Qf1 {[%clk 0:00:58.6]} 26... Rc3
{[%clk 0:00:39.7]} 27. Rxc3 {[%clk 0:00:57]} 27... Qxc3 {[%clk 0:00:40.6]} 28.
Nh1 {[%clk 0:00:31.7]} 28... Qxb3 {[%clk 0:00:30.3]} 29. Nf2 {[%clk 0:00:32.3]}
29... Qc4 {[%clk 0:00:24]} 30. Re2 {[%clk 0:00:30.3]} 30... Qxb5 {[%clk
0:00:16.9]} 31. Qd1 {[%clk 0:00:30.3]} 31... Nc4 {[%clk 0:00:09.5]} 32. Ng4
{[%clk 0:00:30]} 32... Qc5 {[%clk 0:00:06.9]} 33. Nf6+ {[%clk 0:00:26.6]} 33...
Bxf6 {[%clk 0:00:06.4]} 34. gxf6 {[%clk 0:00:27.5]} 34... a5 {[%clk 0:00:06.2]}
35. Rc2 {[%clk 0:00:21.6]} 35... d5 {[%clk 0:00:05.8]} 36. Bf1 {[%clk
0:00:20.2]} 36... a4 {[%clk 0:00:05.1]} 37. Rxc4 {[%clk 0:00:19.7]} 37... Qf2+
{[%clk 0:00:04.7]} 38. Bg2 {[%clk 0:00:18.3]} 38... Ra8 {[%clk 0:00:01.6]} 39.
Rc7 {[%clk 0:00:15.5]} 39... Ba6 {[%clk 0:00:01.3]} 40. Qxa4 {[%clk 0:00:12.4]}
1-0

[Event "Early-Titled-Tuesday-Blitz-January-23-2024"]
[Site "Chess.com"]
[Date "2024.01.23"]
[Round "3"]
[White "esrosenberg"]
[Black "secretsuperstar7"]
[Result "0-1"]
[WhiteElo "2348"]
[BlackElo "2512"]
[TimeControl "180+1"]
[EndTime "8:27:51 PST"]
[Termination "secretsuperstar7 won on time"]

1. c4 {[%clk 0:03:00.9]} 1... e6 {[%clk 0:02:57.7]} 2. g3 {[%clk 0:03:00.1]}
2... d5 {[%clk 0:02:57.6]} 3. Bg2 {[%clk 0:03:00]} 3... Nf6 {[%clk 0:02:57.9]}
4. Nf3 {[%clk 0:03:00]} 4... Be7 {[%clk 0:02:54.9]} 5. d4 {[%clk 0:02:57.1]}
5... O-O {[%clk 0:02:54.6]} 6. O-O {[%clk 0:02:55.6]} 6... Nc6 {[%clk
0:02:53.2]} 7. cxd5 {[%clk 0:02:50.1]} 7... exd5 {[%clk 0:02:53]} 8. Bf4 {[%clk
0:02:46.6]} 8... h6 {[%clk 0:02:50.8]} 9. Nc3 {[%clk 0:02:43]} 9... a6 {[%clk
0:02:49.8]} 10. Rc1 {[%clk 0:02:42.5]} 10... Bf5 {[%clk 0:02:46.4]} 11. a3
{[%clk 0:02:40.7]} 11... Rc8 {[%clk 0:02:42.6]} 12. Re1 {[%clk 0:02:40.4]} 12...
Na5 {[%clk 0:02:42.1]} 13. Ne5 {[%clk 0:02:36.8]} 13... b6 {[%clk 0:02:31]} 14.
b4 {[%clk 0:02:29.8]} 14... Nc4 {[%clk 0:02:29.6]} 15. Nc6 {[%clk 0:02:14.6]}
15... Qd7 {[%clk 0:02:26.9]} 16. Nxe7+ {[%clk 0:02:13]} 16... Qxe7 {[%clk
0:02:26.9]} 17. Nxd5 {[%clk 0:02:12.1]} 17... Nxd5 {[%clk 0:02:26.5]} 18. Bxd5
{[%clk 0:02:09.5]} 18... Nxa3 {[%clk 0:02:25]} 19. Qa4 {[%clk 0:02:05.9]} 19...
Nb5 {[%clk 0:02:20.8]} 20. Qxa6 {[%clk 0:01:56.7]} 20... Nxd4 {[%clk 0:02:18.1]}
21. Bb7 {[%clk 0:01:47.8]} 21... Rce8 {[%clk 0:02:02.4]} 22. e3 {[%clk
0:01:30.4]} 22... Bh3 {[%clk 0:01:51.9]} 23. Rxc7 {[%clk 0:01:20]} 23... Qxb4
{[%clk 0:01:46.1]} 24. Rcc1 {[%clk 0:00:59.3]} 24... Ne6 {[%clk 0:01:34.7]} 25.
Rb1 {[%clk 0:00:46.6]} 25... Qe7 {[%clk 0:01:30.3]} 26. Bf3 {[%clk 0:00:25.9]}
26... g5 {[%clk 0:01:17.6]} 27. Be5 {[%clk 0:00:26]} 27... Nc5 {[%clk
0:01:16.5]} 28. Qxb6 {[%clk 0:00:21.2]} 28... Qxe5 {[%clk 0:01:16.2]} 29. Qxh6
{[%clk 0:00:21.9]} 29... g4 {[%clk 0:01:06]} 30. Rb4 {[%clk 0:00:15.7]} 30...
Re6 {[%clk 0:00:55.7]} 31. Qh4 {[%clk 0:00:11.9]} 31... Qc3 {[%clk 0:00:44.1]}
32. Rbb1 {[%clk 0:00:07.7]} 32... Rg6 {[%clk 0:00:33.2]} 33. Bg2 {[%clk
0:00:06.1]} 33... Bxg2 {[%clk 0:00:31.6]} 34. Kxg2 {[%clk 0:00:07]} 34... Nd3
{[%clk 0:00:30.3]} 35. Re2 {[%clk 0:00:05.9]} 35... Qc6+ {[%clk 0:00:29.7]} 36.
Kg1 {[%clk 0:00:05.9]} 36... Kg7 {[%clk 0:00:26.4]} 37. Qh5 {[%clk 0:00:05.1]}
37... Rb8 {[%clk 0:00:17.9]} 38. Rd1 {[%clk 0:00:04.2]} 38... Qf3 {[%clk
0:00:16]} 39. Red2 {[%clk 0:00:03.8]} 39... Rb2 {[%clk 0:00:11.7]} 0-1

[Event "Early-Titled-Tuesday-Blitz-January-23-2024"]
[Site "Chess.com"]
[Date "2024.01.23"]
[Round "3"]
[White "twofoxniel"]
[Black "artooon"]
[Result "1/2-1/2"]
[WhiteElo "2696"]
[BlackElo "2964"]
[TimeControl "180+1"]
[EndTime "8:27:52 PST"]
[Termination "Game drawn by repetition"]

1. e4 {[%clk 0:03:00.9]} 1... e5 {[%clk 0:02:57.5]} 2. Nf3 {[%clk 0:03:00.7]}
2... Nc6 {[%clk 0:02:56.6]} 3. Bc4 {[%clk 0:03:00.8]} 3... Nf6 {[%clk
0:02:56.1]} 4. d3 {[%clk 0:03:00.8]} 4... Bc5 {[%clk 0:02:55.1]} 5. Nc3 {[%clk
0:03:01]} 5... h6 {[%clk 0:02:54.7]} 6. Be3 {[%clk 0:03:01.4]} 6... Bxe3 {[%clk
0:02:51.3]} 7. fxe3 {[%clk 0:03:02.3]} 7... d6 {[%clk 0:02:51.8]} 8. O-O {[%clk
0:03:02.4]} 8... Be6 {[%clk 0:02:51.2]} 9. Bb3 {[%clk 0:03:02.8]} 9... O-O
{[%clk 0:02:46.4]} 10. Qe1 {[%clk 0:03:01.8]} 10... d5 {[%clk 0:02:28.8]} 11.
Nh4 {[%clk 0:02:47.9]} 11... dxe4 {[%clk 0:02:23.6]} 12. dxe4 {[%clk 0:02:48.8]}
12... Ne8 {[%clk 0:02:14]} 13. Nf5 {[%clk 0:02:43.3]} 13... Nd6 {[%clk
0:02:09.4]} 14. Qg3 {[%clk 0:02:36.5]} 14... Bxf5 {[%clk 0:01:59]} 15. exf5
{[%clk 0:02:34.5]} 15... Qg5 {[%clk 0:01:55.6]} 16. Qf3 {[%clk 0:02:20.3]} 16...
e4 {[%clk 0:01:45.3]} 17. Nxe4 {[%clk 0:02:01]} 17... Nxe4 {[%clk 0:01:46.2]}
18. Qxe4 {[%clk 0:02:01.6]} 18... Rae8 {[%clk 0:01:46.8]} 19. Qf4 {[%clk
0:02:01.8]} 19... Rxe3 {[%clk 0:01:31.2]} 20. Qxc7 {[%clk 0:01:42]} 20... Ne5
{[%clk 0:01:17.3]} 21. Qxb7 {[%clk 0:01:30.9]} 21... Re2 {[%clk 0:01:01.5]} 22.
h3 {[%clk 0:00:52.2]} 22... Rd8 {[%clk 0:01:01.2]} 23. Rad1 {[%clk 0:00:39.3]}
23... Rxd1 {[%clk 0:01:01.2]} 24. Rxd1 {[%clk 0:00:39.1]} 24... Qe3+ {[%clk
0:01:00.3]} 25. Kh1 {[%clk 0:00:39.3]} 25... Qg3 {[%clk 0:00:36.5]} 26. f6
{[%clk 0:00:36]} 26... gxf6 {[%clk 0:00:33.9]} 27. Rf1 {[%clk 0:00:36.5]} 27...
f5 {[%clk 0:00:27.5]} 28. Bd5 {[%clk 0:00:28]} 28... f4 {[%clk 0:00:26.2]} 29.
Qc8+ {[%clk 0:00:27.9]} 29... Kg7 {[%clk 0:00:24.9]} 30. Qf5 {[%clk 0:00:28.6]}
30... Re1 {[%clk 0:00:11.4]} 31. Rxe1 {[%clk 0:00:24]} 31... Qxe1+ {[%clk
0:00:11.8]} 32. Kh2 {[%clk 0:00:24.7]} 32... Qg3+ {[%clk 0:00:11.6]} 33. Kh1
{[%clk 0:00:25.2]} 33... Qe1+ {[%clk 0:00:08.7]} 34. Kh2 {[%clk 0:00:25.3]}
34... Qg3+ {[%clk 0:00:09]} 35. Kh1 {[%clk 0:00:25.8]} 35... f6 {[%clk
0:00:09.4]} 36. Be4 {[%clk 0:00:25.4]} 36... Qe1+ {[%clk 0:00:09.2]} 37. Kh2
{[%clk 0:00:25.4]} 37... Qg3+ {[%clk 0:00:09.7]} 38. Kh1 {[%clk 0:00:25.9]}
38... Qe1+ {[%clk 0:00:06.4]} 39. Kh2 {[%clk 0:00:26]} 39... Qg3+ {[%clk
0:00:05.1]} 40. Kh1 {[%clk 0:00:26.4]} 1/2-1/2